[Event "***Titled Tuesday 3|2 Blitz"]
[Site "Chess.com"]
[Date "2017.02.07"]
[Round "1"]
[White "Sebastian"]
[Black "Gergo85"]
[Result "1/2-1/2"]
[WhiteElo "2675"]
[BlackElo "2385"]
[TimeControl "180+2"]
[EndTime "13:17:00 PST"]
[Termination "Game drawn by repetition"]

1. e4 {[%clk 0:03:02]} 1... c6 {[%clk 0:02:58.7]} 2. d4 {[%clk 0:03:00]} 2... d5
{[%clk 0:02:59.7]} 3. e5 {[%clk 0:03:01.6]} 3... c5 {[%clk 0:03:00.8]} 4. dxc5
{[%clk 0:03:01.4]} 4... Nc6 {[%clk 0:03:01.7]} 5. a3 {[%clk 0:02:59.9]} 5...
Nxe5 {[%clk 0:03:01.9]} 6. Bb5+ {[%clk 0:02:59.9]} 6... Nc6 {[%clk 0:02:59.9]}
7. b4 {[%clk 0:02:59.3]} 7... Nf6 {[%clk 0:02:57.6]} 8. Bb2 {[%clk 0:03:00.1]}
8... e6 {[%clk 0:02:40.7]} 9. Nf3 {[%clk 0:03:00.5]} 9... Be7 {[%clk 0:02:42]}
10. O-O {[%clk 0:02:58.4]} 10... O-O {[%clk 0:02:42.5]} 11. c4 {[%clk
0:02:59.9]} 11... a6 {[%clk 0:02:37.7]} 12. Ba4 {[%clk 0:03:01.1]} 12... dxc4
{[%clk 0:02:37]} 13. Nbd2 {[%clk 0:02:59.1]} 13... c3 {[%clk 0:02:14.9]} 14.
Bxc3 {[%clk 0:02:59.3]} 14... Nd5 {[%clk 0:02:16.5]} 15. Bb2 {[%clk 0:02:57.9]}
15... Bf6 {[%clk 0:02:17.8]} 16. Bxf6 {[%clk 0:02:52.8]} 16... Qxf6 {[%clk
0:02:18.7]} 17. Ne4 {[%clk 0:02:53.6]} 17... Qg6 {[%clk 0:02:19.7]} 18. Bc2
{[%clk 0:02:36.1]} 18... f5 {[%clk 0:01:59.1]} 19. Nd6 {[%clk 0:02:36.8]} 19...
Rd8 {[%clk 0:01:31]} 20. Bb3 {[%clk 0:02:35.5]} 20... Nce7 {[%clk 0:01:10.8]}
21. Re1 {[%clk 0:02:28.8]} 21... b6 {[%clk 0:00:57.7]} 22. Ne5 {[%clk
0:02:19.7]} 22... Qf6 {[%clk 0:00:57.7]} 23. Nc6 {[%clk 0:02:20.7]} 23... Nxc6
{[%clk 0:00:30.1]} 24. Bxd5 {[%clk 0:02:21]} 24... Bd7 {[%clk 0:00:30.1]} 25.
Ba2 {[%clk 0:01:21.7]} 25... Rab8 {[%clk 0:00:28.9]} 26. Qd3 {[%clk 0:01:11.4]}
26... bxc5 {[%clk 0:00:28.9]} 27. bxc5 {[%clk 0:01:12.3]} 27... h6 {[%clk
0:00:21.8]} 28. Qxf5 {[%clk 0:01:10.3]} 28... Qxf5 {[%clk 0:00:19.6]} 29. Nxf5
{[%clk 0:01:11.4]} 29... Rb2 {[%clk 0:00:12.7]} 30. Bxe6+ {[%clk 0:01:10.7]}
30... Bxe6 {[%clk 0:00:13.5]} 31. Rxe6 {[%clk 0:01:12.4]} 31... Nd4 {[%clk
0:00:14.4]} 32. Nxd4 {[%clk 0:01:00.1]} 32... Rxd4 {[%clk 0:00:16.3]} 33. Rxa6
{[%clk 0:00:59.9]} 33... Rdd2 {[%clk 0:00:16.1]} 34. Rf1 {[%clk 0:01:00.5]}
34... Rdc2 {[%clk 0:00:17.7]} 35. c6 {[%clk 0:01:01.6]} 35... h5 {[%clk
0:00:18.6]} 36. h4 {[%clk 0:01:01.9]} 36... Ra2 {[%clk 0:00:18.8]} 37. a4 {[%clk
0:01:02.5]} 37... Rc4 {[%clk 0:00:19.1]} 38. g3 {[%clk 0:01:02.9]} 38... Kh7
{[%clk 0:00:18.3]} 39. a5 {[%clk 0:01:03.2]} 39... Rcc2 {[%clk 0:00:18.9]} 40.
Ra7 {[%clk 0:00:46.2]} 40... Rxc6 {[%clk 0:00:18.8]} 41. Re1 {[%clk 0:00:47.1]}
41... Rf6 {[%clk 0:00:19.1]} 42. Rf1 {[%clk 0:00:42.9]} 42... Rf5 {[%clk
0:00:18]} 43. a6 {[%clk 0:00:44.3]} 43... Rf6 {[%clk 0:00:18.7]} 44. Rc7 {[%clk
0:00:41.7]} 44... Raxa6 {[%clk 0:00:18.6]} 45. Rc2 {[%clk 0:00:40.6]} 45... Rac6
{[%clk 0:00:19.4]} 46. Rd2 {[%clk 0:00:40.4]} 46... Rcd6 {[%clk 0:00:20.6]} 47.
Rfd1 {[%clk 0:00:42.1]} 47... Rxd2 {[%clk 0:00:21.5]} 48. Rxd2 {[%clk
0:00:43.8]} 48... Ra6 {[%clk 0:00:22.6]} 49. Kg2 {[%clk 0:00:45.2]} 49... g6
{[%clk 0:00:23.2]} 50. Rd7+ {[%clk 0:00:46.2]} 50... Kh6 {[%clk 0:00:23.8]} 51.
Kf3 {[%clk 0:00:47.9]} 51... Ra3+ {[%clk 0:00:24.8]} 52. Kf4 {[%clk 0:00:49.1]}
52... Ra4+ {[%clk 0:00:26.2]} 53. Ke5 {[%clk 0:00:46.2]} 53... Ra2 {[%clk
0:00:26.5]} 54. Rf7 {[%clk 0:00:46.8]} 54... Re2+ {[%clk 0:00:26.7]} 55. Kd6
{[%clk 0:00:48]} 55... Re1 {[%clk 0:00:27.8]} 56. Kd7 {[%clk 0:00:49.1]} 56...
Re2 {[%clk 0:00:29]} 57. Kd8 {[%clk 0:00:50.1]} 57... Re1 {[%clk 0:00:30.2]} 58.
Re7 {[%clk 0:00:51.1]} 58... Rf1 {[%clk 0:00:31.3]} 59. Re2 {[%clk 0:00:52.2]}
59... Kg7 {[%clk 0:00:32.2]} 60. Ke7 {[%clk 0:00:53.5]} 60... Ra1 {[%clk
0:00:32.5]} 61. Rd2 {[%clk 0:00:53.9]} 61... Re1+ {[%clk 0:00:31.5]} 62. Kd6
{[%clk 0:00:55.1]} 62... Kf6 {[%clk 0:00:32.3]} 63. Rd4 {[%clk 0:00:55.4]} 63...
Re2 {[%clk 0:00:30.4]} 64. Rf4+ {[%clk 0:00:56]} 64... Kg7 {[%clk 0:00:31.6]}
65. Kd5 {[%clk 0:00:57.6]} 65... Re1 {[%clk 0:00:32.7]} 66. Kd4 {[%clk
0:00:57.9]} 66... Re2 {[%clk 0:00:33.8]} 67. Kd3 {[%clk 0:00:58.9]} 67... Ra2
{[%clk 0:00:33.9]} 68. Ke3 {[%clk 0:00:58.7]} 68... Ra3+ {[%clk 0:00:34.1]} 69.
Ke4 {[%clk 0:01:00.1]} 69... Ra4+ {[%clk 0:00:34.2]} 70. Ke5 {[%clk 0:01:01.4]}
70... Ra2 {[%clk 0:00:34.9]} 71. Ke4 {[%clk 0:00:59.3]} 71... Ra4+ {[%clk
0:00:35.8]} 72. Kf3 {[%clk 0:01:00.4]} 72... Ra3+ {[%clk 0:00:37.2]} 73. Kg2
{[%clk 0:01:01.7]} 73... Rb3 {[%clk 0:00:38.1]} 74. Rd4 {[%clk 0:01:02.6]} 74...
Ra3 {[%clk 0:00:39.2]} 75. Re4 {[%clk 0:01:03.7]} 75... Rb3 {[%clk 0:00:39.9]}
76. Re3 {[%clk 0:01:05]} 76... Rb4 {[%clk 0:00:39.7]} 77. Kf3 {[%clk 0:01:06.1]}
77... Ra4 {[%clk 0:00:41]} 78. Re4 {[%clk 0:01:06.9]} 78... Ra2 {[%clk
0:00:41.8]} 79. Ke3 {[%clk 0:01:07.5]} 79... Rb2 {[%clk 0:00:42.4]} 80. f3
{[%clk 0:01:08.6]} 80... Rb3+ {[%clk 0:00:42.8]} 81. Kf4 {[%clk 0:01:10.1]}
81... Ra3 {[%clk 0:00:43]} 82. Rc4 {[%clk 0:01:11]} 82... Ra5 {[%clk 0:00:42.2]}
83. Ke4 {[%clk 0:01:10.5]} 83... Rb5 {[%clk 0:00:41.4]} 84. Rd4 {[%clk
0:01:11.6]} 84... Ra5 {[%clk 0:00:42.3]} 85. Rd5 {[%clk 0:01:10.6]} 85... Ra4+
{[%clk 0:00:43.4]} 86. Ke5 {[%clk 0:01:11.9]} 86... Ra3 {[%clk 0:00:44.6]} 87.
Rd7+ {[%clk 0:01:12.8]} 87... Kh6 {[%clk 0:00:45.2]} 88. Ke4 {[%clk 0:01:12.8]}
88... Ra4+ {[%clk 0:00:45.9]} 89. Rd4 {[%clk 0:01:13.6]} 89... Ra3 {[%clk
0:00:46.6]} 90. Kf4 {[%clk 0:01:11.8]} 90... Kg7 {[%clk 0:00:46]} 91. Rd7+
{[%clk 0:01:12.6]} 91... Kf6 {[%clk 0:00:46.5]} 92. Rd6+ {[%clk 0:01:13.9]}
92... Kg7 {[%clk 0:00:47.4]} 93. Ke4 {[%clk 0:01:13.9]} 93... Rb3 {[%clk
0:00:46.2]} 94. Rc6 {[%clk 0:01:13.5]} 94... Ra3 {[%clk 0:00:47.1]} 95. Rd6
{[%clk 0:01:14.1]} 95... Rb3 {[%clk 0:00:48.3]} 96. Rd3 {[%clk 0:01:15.7]} 96...
Rb5 {[%clk 0:00:48.8]} 97. Rd5 {[%clk 0:01:16]} 97... Rb3 {[%clk 0:00:49.5]} 98.
Kf4 {[%clk 0:01:16.8]} 98... Kf6 {[%clk 0:00:47.1]} 99. Rd6+ {[%clk 0:01:16.7]}
99... Kg7 {[%clk 0:00:48.2]} 100. Re6 {[%clk 0:01:16.2]} 100... Ra3 {[%clk
0:00:48.2]} 101. Re5 {[%clk 0:01:15.5]} 101... Rb3 {[%clk 0:00:48.5]} 102. Rc5
{[%clk 0:00:57.6]} 102... Kf6 {[%clk 0:00:46.7]} 103. Rc4 {[%clk 0:00:55.3]}
103... Ra3 {[%clk 0:00:44.8]} 104. Ke4 {[%clk 0:00:55.7]} 104... Rb3 {[%clk
0:00:44.5]} 105. Rd4 {[%clk 0:00:56.8]} 105... Ra3 {[%clk 0:00:44.9]} 106. Rd3
{[%clk 0:00:57.6]} 106... Ra5 {[%clk 0:00:45.9]} 107. Rd6+ {[%clk 0:00:57.2]}
107... Kg7 {[%clk 0:00:46.3]} 108. Rd5 {[%clk 0:00:54.6]} 108... Ra3 {[%clk
0:00:46.6]} 109. Kf4 {[%clk 0:00:55.4]} 109... Kf6 {[%clk 0:00:44.6]} 110. Rd6+
{[%clk 0:00:53.5]} 110... Kg7 {[%clk 0:00:45.3]} 111. Rd4 {[%clk 0:00:54.1]}
111... Kf6 {[%clk 0:00:45.2]} 112. g4 {[%clk 0:00:53.9]} 112... hxg4 {[%clk
0:00:45.6]} 113. Kxg4 {[%clk 0:00:55.2]} 113... Ra6 {[%clk 0:00:45.2]} 114. Kf4
{[%clk 0:00:54.4]} 114... Rb6 {[%clk 0:00:45]} 115. Rc4 {[%clk 0:00:54.3]}
115... Ra6 {[%clk 0:00:43.6]} 116. Kg4 {[%clk 0:00:55.2]} 116... Rb6 {[%clk
0:00:41.1]} 117. Rf4+ {[%clk 0:00:56.8]} 117... Kg7 {[%clk 0:00:42.2]} 118. Re4
{[%clk 0:00:57.8]} 118... Kf6 {[%clk 0:00:42.7]} 119. Rd4 {[%clk 0:00:58.8]}
119... Ra6 {[%clk 0:00:43]} 120. f4 {[%clk 0:00:59.1]} 120... Ra1 {[%clk
0:00:36.9]} 121. Rd6+ {[%clk 0:00:57]} 121... Kg7 {[%clk 0:00:38]} 122. Rd3
{[%clk 0:00:58.1]} 122... Kf6 {[%clk 0:00:37]} 123. Rd6+ {[%clk 0:00:58.7]}
123... Kg7 {[%clk 0:00:38]} 124. h5 {[%clk 0:00:57.4]} 124... gxh5+ {[%clk
0:00:37.1]} 125. Kg5 {[%clk 0:00:58.1]} 125... Rg1+ {[%clk 0:00:37.4]} 126. Kf5
{[%clk 0:00:58.6]} 126... h4 {[%clk 0:00:38.5]} 127. Rd7+ {[%clk 0:00:59.8]}
127... Kg8 {[%clk 0:00:25.1]} 128. Kf6 {[%clk 0:01:00.6]} 128... h3 {[%clk
0:00:19]} 129. Rd2 {[%clk 0:00:46.3]} 129... Rg2 {[%clk 0:00:14.1]} 130. Rd3
{[%clk 0:00:47]} 130... h2 {[%clk 0:00:11]} 131. Rh3 {[%clk 0:00:48.4]} 131...
Ra2 {[%clk 0:00:09.7]} 132. f5 {[%clk 0:00:47.2]} 132... Ra6+ {[%clk 0:00:09.3]}
133. Ke7 {[%clk 0:00:48.5]} 133... Ra7+ {[%clk 0:00:10.2]} 134. Ke6 {[%clk
0:00:49.1]} 134... Ra6+ {[%clk 0:00:11.4]} 135. Ke5 {[%clk 0:00:49]} 135... Ra5+
{[%clk 0:00:09.7]} 136. Kf6 {[%clk 0:00:49.3]} 136... Ra6+ {[%clk 0:00:10.1]}
137. Kg5 {[%clk 0:00:50.5]} 137... Ra2 {[%clk 0:00:10.8]} 138. Kg6 {[%clk
0:00:50.6]} 138... Rg2+ {[%clk 0:00:08.2]} 139. Kf6 {[%clk 0:00:51.4]} 139...
Ra2 {[%clk 0:00:09.7]} 140. Rg3+ {[%clk 0:00:52.5]} 140... Kf8 {[%clk
0:00:08.4]} 141. Rh3 {[%clk 0:00:53.7]} 141... Ra6+ {[%clk 0:00:06.5]} 142. Kg5
{[%clk 0:00:54]} 142... Ra2 {[%clk 0:00:05.1]} 143. Kg6 {[%clk 0:00:55.1]}
143... Rg2+ {[%clk 0:00:05]} 144. Kf6 {[%clk 0:00:55.5]} 144... Kg8 {[%clk
0:00:06.3]} 145. Rh4 {[%clk 0:00:56.9]} 145... Ra2 {[%clk 0:00:06.4]} 146. Rg4+
{[%clk 0:00:55.9]} 146... Kf8 {[%clk 0:00:07.4]} 147. Rh4 {[%clk 0:00:57.5]}
147... Kg8 {[%clk 0:00:08.2]} 148. Kg6 {[%clk 0:00:58.8]} 148... Rg2+ {[%clk
0:00:08.3]} 149. Kf6 {[%clk 0:01:00.1]} 149... Ra2 {[%clk 0:00:09.2]} 150. Rh3
{[%clk 0:00:59]} 150... Ra6+ {[%clk 0:00:09.8]} 151. Kg5 {[%clk 0:00:59.7]}
151... Ra2 {[%clk 0:00:10.8]} 152. Kg4 {[%clk 0:00:58.5]} 152... Kg7 {[%clk
0:00:10.1]} 153. Kg5 {[%clk 0:00:58.6]} 153... Rg2+ {[%clk 0:00:10.9]} 154. Kf4
{[%clk 0:00:59.7]} 154... Ra2 {[%clk 0:00:11.9]} 155. Kg5 {[%clk 0:00:59.5]}
155... Rg2+ {[%clk 0:00:12.7]} 156. Kf4 {[%clk 0:01:00.8]} 156... Ra2 {[%clk
0:00:11.6]} 157. Kg5 {[%clk 0:01:01.9]} 157... Rg2+ {[%clk 0:00:12.5]} 1/2-1/2

[Event "***Titled Tuesday 3|2 Blitz"]
[Site "Chess.com"]
[Date "2017.02.07"]
[Round "2"]
[White "WanderingPuppet"]
[Black "Pierrebl"]
[Result "0-1"]
[WhiteElo "2318"]
[BlackElo "2405"]
[TimeControl "180+2"]
[EndTime "13:20:39 PST"]
[Termination "Pierrebl won by resignation"]

1. e4 {[%clk 0:03:02]} 1... c5 {[%clk 0:02:59.5]} 2. Nf3 {[%clk 0:03:00.1]} 2...
Nc6 {[%clk 0:03:00.5]} 3. Bb5 {[%clk 0:03:00.9]} 3... g6 {[%clk 0:03:01.5]} 4.
O-O {[%clk 0:03:01]} 4... Bg7 {[%clk 0:03:02.3]} 5. Re1 {[%clk 0:03:01.8]} 5...
Nf6 {[%clk 0:03:01.3]} 6. Nc3 {[%clk 0:02:54.1]} 6... O-O {[%clk 0:02:58.8]} 7.
e5 {[%clk 0:02:52.1]} 7... Ne8 {[%clk 0:02:55.6]} 8. d3 {[%clk 0:02:46.9]} 8...
Nc7 {[%clk 0:02:56]} 9. Bxc6 {[%clk 0:02:47.1]} 9... dxc6 {[%clk 0:02:57.3]} 10.
Ne4 {[%clk 0:02:46.8]} 10... b6 {[%clk 0:02:54.6]} 11. a4 {[%clk 0:02:48.4]}
11... Bg4 {[%clk 0:02:54.2]} 12. h3 {[%clk 0:02:33.4]} 12... Bxf3 {[%clk
0:02:54.3]} 13. Qxf3 {[%clk 0:02:35.3]} 13... Ne6 {[%clk 0:02:54.7]} 14. Bf4
{[%clk 0:02:23.9]} 14... Qd5 {[%clk 0:02:36.3]} 15. Nc3 {[%clk 0:02:08]} 15...
Qxf3 {[%clk 0:02:35]} 0-1

[Event "***Titled Tuesday 3|2 Blitz"]
[Site "Chess.com"]
[Date "2017.02.07"]
[Round "2"]
[White "avto24"]
[Black "kleinebeer98"]
[Result "0-1"]
[WhiteElo "2382"]
[BlackElo "2480"]
[TimeControl "180+2"]
[EndTime "13:22:35 PST"]
[Termination "kleinebeer98 won by resignation"]

1. e4 {[%clk 0:03:02]} 1... e5 {[%clk 0:02:58.4]} 2. Nf3 {[%clk 0:03:00.4]} 2...
Nc6 {[%clk 0:02:55.8]} 3. Bc4 {[%clk 0:03:01]} 3... Nf6 {[%clk 0:02:55.9]} 4.
Ng5 {[%clk 0:03:01.6]} 4... d5 {[%clk 0:02:56.5]} 5. exd5 {[%clk 0:03:03.5]}
5... Na5 {[%clk 0:02:57.8]} 6. Bb5+ {[%clk 0:03:04.7]} 6... c6 {[%clk 0:02:58]}
7. dxc6 {[%clk 0:03:06.6]} 7... bxc6 {[%clk 0:02:59.9]} 8. Bd3 {[%clk
0:03:07.5]} 8... Nd5 {[%clk 0:02:55.1]} 9. Nf3 {[%clk 0:03:05.6]} 9... Nf4
{[%clk 0:02:51.7]} 10. Bf1 {[%clk 0:03:05.9]} 10... Bd6 {[%clk 0:02:16.2]} 11.
d3 {[%clk 0:03:05]} 11... O-O {[%clk 0:02:13.2]} 12. Nc3 {[%clk 0:03:05.8]}
12... Re8 {[%clk 0:02:11.2]} 13. Bd2 {[%clk 0:02:59.4]} 13... Rb8 {[%clk
0:02:07.7]} 14. b3 {[%clk 0:02:59.6]} 14... Bg4 {[%clk 0:01:59]} 15. h3 {[%clk
0:02:55.2]} 15... Bh5 {[%clk 0:01:58.7]} 16. g3 {[%clk 0:02:55.3]} 16... f5
{[%clk 0:01:45.7]} 17. Nb1 {[%clk 0:02:31.4]} 17... e4 {[%clk 0:01:35.7]} 18.
gxf4 {[%clk 0:02:04.7]} 18... exf3+ {[%clk 0:01:27.6]} 19. Be3 {[%clk 0:02:04]}
19... Rxe3+ {[%clk 0:01:29.2]} 20. fxe3 {[%clk 0:01:53.2]} 20... f2+ {[%clk
0:01:31.1]} 21. Kd2 {[%clk 0:01:54.5]} 21... Bxd1 {[%clk 0:01:32.8]} 22. Kxd1
{[%clk 0:01:56.4]} 22... Qe7 {[%clk 0:01:33.5]} 23. Nd2 {[%clk 0:01:47.1]} 23...
Qxe3 {[%clk 0:01:33.7]} 0-1

[Event "***Titled Tuesday 3|2 Blitz"]
[Site "Chess.com"]
[Date "2017.02.07"]
[Round "2"]
[White "Konavets"]
[Black "gmwesley_so"]
[Result "0-1"]
[WhiteElo "2511"]
[BlackElo "2739"]
[TimeControl "180+2"]
[EndTime "13:23:28 PST"]
[Termination "gmwesley_so won by checkmate"]

1. Nf3 {[%clk 0:03:02]} 1... d5 {[%clk 0:03:00]} 2. g3 {[%clk 0:03:02.1]} 2...
Bg4 {[%clk 0:02:58.4]} 3. Bg2 {[%clk 0:03:02.8]} 3... c6 {[%clk 0:03:00]} 4. O-O
{[%clk 0:03:03.3]} 4... Nd7 {[%clk 0:03:01.6]} 5. d3 {[%clk 0:03:02.4]} 5...
Ngf6 {[%clk 0:03:02.8]} 6. Nbd2 {[%clk 0:03:03.1]} 6... e5 {[%clk 0:03:04.3]} 7.
h3 {[%clk 0:03:03.6]} 7... Bh5 {[%clk 0:03:04.6]} 8. e4 {[%clk 0:03:04]} 8...
Bd6 {[%clk 0:03:05.3]} 9. exd5 {[%clk 0:02:59.5]} 9... cxd5 {[%clk 0:03:07.2]}
10. c4 {[%clk 0:02:59.7]} 10... O-O {[%clk 0:03:07]} 11. cxd5 {[%clk 0:03:00.5]}
11... Nxd5 {[%clk 0:03:08.1]} 12. Nc4 {[%clk 0:02:48.8]} 12... Bc7 {[%clk
0:03:06.2]} 13. Re1 {[%clk 0:02:45.5]} 13... Re8 {[%clk 0:03:04]} 14. a3 {[%clk
0:02:36.4]} 14... Rc8 {[%clk 0:02:53.3]} 15. b4 {[%clk 0:02:16.3]} 15... b5
{[%clk 0:02:52.5]} 16. Ne3 {[%clk 0:02:17.2]} 16... Nc3 {[%clk 0:02:48.7]} 17.
Qb3 {[%clk 0:02:12]} 17... Bb6 {[%clk 0:02:41.4]} 18. Bd2 {[%clk 0:02:06.9]}
18... e4 {[%clk 0:02:39.5]} 19. dxe4 {[%clk 0:01:28.3]} 19... Nxe4 {[%clk
0:02:41.4]} 20. Rad1 {[%clk 0:01:25.1]} 20... Ne5 {[%clk 0:02:40.2]} 21. Bc1
{[%clk 0:00:50.1]} 21... Qf6 {[%clk 0:02:38.3]} 22. Nxe5 {[%clk 0:00:07.9]}
22... Qxf2+ {[%clk 0:02:40.2]} 23. Kh1 {[%clk 0:00:07.2]} 23... Nxg3+ {[%clk
0:02:39]} 24. Kh2 {[%clk 0:00:08.3]} 24... Bxd1 {[%clk 0:02:39.7]} 25. Nxd1
{[%clk 0:00:07.4]} 25... Qxe1 {[%clk 0:02:32.5]} 26. Qxf7+ {[%clk 0:00:05.2]}
26... Kh8 {[%clk 0:02:33.8]} 27. Bb2 {[%clk 0:00:06.5]} 27... Bg1# {[%clk
0:02:30.4]} 0-1

[Event "***Titled Tuesday 3|2 Blitz"]
[Site "Chess.com"]
[Date "2017.02.07"]
[Round "2"]
[White "salomez"]
[Black "JeremDev"]
[Result "0-1"]
[WhiteElo "2157"]
[BlackElo "2113"]
[TimeControl "180+2"]
[EndTime "13:23:32 PST"]
[Termination "JeremDev won by resignation"]

1. e4 {[%clk 0:03:02]} 1... c5 {[%clk 0:02:59.7]} 2. Nf3 {[%clk 0:03:00.3]} 2...
d6 {[%clk 0:02:59.2]} 3. d4 {[%clk 0:02:59.6]} 3... cxd4 {[%clk 0:03:01.1]} 4.
Nxd4 {[%clk 0:03:00.3]} 4... Nf6 {[%clk 0:03:02.1]} 5. Nc3 {[%clk 0:03:00.8]}
5... g6 {[%clk 0:03:03.2]} 6. Be3 {[%clk 0:03:00.8]} 6... Bg7 {[%clk 0:03:04.3]}
7. f3 {[%clk 0:03:02.1]} 7... O-O {[%clk 0:03:05.3]} 8. Qd2 {[%clk 0:03:03.6]}
8... Nc6 {[%clk 0:03:06.4]} 9. g4 {[%clk 0:02:59.6]} 9... Be6 {[%clk 0:03:06.1]}
10. Nxe6 {[%clk 0:02:59.6]} 10... fxe6 {[%clk 0:03:06.5]} 11. O-O-O {[%clk
0:02:59.7]} 11... Ne5 {[%clk 0:02:53.8]} 12. Be2 {[%clk 0:02:38.5]} 12... Qa5
{[%clk 0:02:44.2]} 13. Kb1 {[%clk 0:02:37.4]} 13... Rfc8 {[%clk 0:02:44.7]} 14.
Bd4 {[%clk 0:02:29.7]} 14... Rab8 {[%clk 0:02:35.6]} 15. h4 {[%clk 0:02:28.6]}
15... b5 {[%clk 0:02:35]} 16. h5 {[%clk 0:02:20.5]} 16... b4 {[%clk 0:02:25.7]}
17. Ka1 {[%clk 0:02:01.1]} 17... bxc3 {[%clk 0:02:25]} 18. Bxc3 {[%clk
0:02:02.2]} 18... Qb6 {[%clk 0:02:18.6]} 19. hxg6 {[%clk 0:02:01.8]} 19... hxg6
{[%clk 0:02:17.3]} 20. g5 {[%clk 0:02:02.6]} 20... Nh5 {[%clk 0:02:16.1]} 21. f4
{[%clk 0:02:02.6]} 21... Rxc3 {[%clk 0:01:40.6]} 22. Qxc3 {[%clk 0:01:50.7]}
22... Nxf4 {[%clk 0:01:40.5]} 23. Bf1 {[%clk 0:01:10.7]} 23... Ned3 {[%clk
0:01:32.8]} 24. Qb3 {[%clk 0:01:09.1]} 24... Qxb3 {[%clk 0:01:22.7]} 25. axb3
{[%clk 0:01:07.8]} 25... Nf2 {[%clk 0:01:23.9]} 0-1

[Event "***Titled Tuesday 3|2 Blitz"]
[Site "Chess.com"]
[Date "2017.02.07"]
[Round "2"]
[White "Tartody"]
[Black "latigre"]
[Result "1-0"]
[WhiteElo "1920"]
[BlackElo "1761"]
[TimeControl "180+2"]
[EndTime "13:23:36 PST"]
[Termination "Tartody won by resignation"]

1. e4 {[%clk 0:03:01.9]} 1... e5 {[%clk 0:03:00.1]} 2. Nc3 {[%clk 0:03:03.7]}
2... Nc6 {[%clk 0:02:55.3]} 3. g3 {[%clk 0:03:05.6]} 3... Nf6 {[%clk 0:02:54.4]}
4. Bg2 {[%clk 0:03:06.4]} 4... Bb4 {[%clk 0:02:54.4]} 5. Nge2 {[%clk 0:02:53.9]}
5... O-O {[%clk 0:02:50.4]} 6. d3 {[%clk 0:02:54.6]} 6... d6 {[%clk 0:02:50.7]}
7. O-O {[%clk 0:02:55.6]} 7... h6 {[%clk 0:02:49.3]} 8. h3 {[%clk 0:02:56.7]}
8... a6 {[%clk 0:02:44.6]} 9. Nd5 {[%clk 0:02:56.9]} 9... Nxd5 {[%clk 0:02:39]}
10. exd5 {[%clk 0:02:58.8]} 10... Ne7 {[%clk 0:02:39.7]} 11. f4 {[%clk
0:02:54.7]} 11... f6 {[%clk 0:02:07.5]} 12. g4 {[%clk 0:02:51.3]} 12... exf4
{[%clk 0:01:36.8]} 13. Nxf4 {[%clk 0:02:48.9]} 13... Qe8 {[%clk 0:01:33.9]} 14.
c3 {[%clk 0:02:48.7]} 14... Ba5 {[%clk 0:01:33.1]} 15. d4 {[%clk 0:02:50.6]}
15... Qf7 {[%clk 0:01:30.2]} 16. Qd3 {[%clk 0:02:50.3]} 16... Bd7 {[%clk
0:01:28.5]} 17. Be3 {[%clk 0:02:49.3]} 17... Rae8 {[%clk 0:01:27.5]} 18. Rf2
{[%clk 0:02:49.6]} 18... c6 {[%clk 0:01:23.9]} 19. dxc6 {[%clk 0:02:46.3]} 19...
Bxc6 {[%clk 0:01:19.4]} 20. d5 {[%clk 0:02:47.2]} 20... Bb5 {[%clk 0:01:18.5]}
21. c4 {[%clk 0:02:48.1]} 21... Bd7 {[%clk 0:01:18.7]} 22. a3 {[%clk 0:02:49.3]}
22... Nc8 {[%clk 0:01:16.8]} 23. Bd4 {[%clk 0:02:46.7]} 23... Bb6 {[%clk
0:01:14.6]} 24. Raf1 {[%clk 0:02:44.7]} 24... Ba4 {[%clk 0:01:03.6]} 25. Be4
{[%clk 0:02:27.8]} 25... Bd7 {[%clk 0:01:00.8]} 26. Bh7+ {[%clk 0:02:23.6]}
26... Kh8 {[%clk 0:00:59.1]} 27. Bg6 {[%clk 0:02:23]} 27... Qe7 {[%clk
0:00:49.9]} 28. Bxb6 {[%clk 0:02:23.5]} 28... Nxb6 {[%clk 0:00:45.3]} 29. Bxe8
{[%clk 0:02:25]} 29... Bxe8 {[%clk 0:00:45.6]} 30. Re2 {[%clk 0:02:26]} 30...
Qc7 {[%clk 0:00:40.5]} 31. Ne6 {[%clk 0:02:26.6]} 1-0

[Event "***Titled Tuesday 3|2 Blitz"]
[Site "Chess.com"]
[Date "2017.02.07"]
[Round "2"]
[White "PelinGorki"]
[Black "Daniela_Movileanu"]
[Result "1-0"]
[WhiteElo "2369"]
[BlackElo "2060"]
[TimeControl "180+2"]
[EndTime "13:23:54 PST"]
[Termination "PelinGorki won by checkmate"]

1. e4 {[%clk 0:03:02]} 1... c5 {[%clk 0:03:00.8]} 2. Nf3 {[%clk 0:03:02]} 2...
d6 {[%clk 0:03:01.4]} 3. d4 {[%clk 0:03:03.2]} 3... Nf6 {[%clk 0:03:02.1]} 4.
Nc3 {[%clk 0:03:03.7]} 4... cxd4 {[%clk 0:03:02.5]} 5. Nxd4 {[%clk 0:03:04.1]}
5... a6 {[%clk 0:03:04.1]} 6. Bg5 {[%clk 0:03:04]} 6... e6 {[%clk 0:03:05]} 7.
f4 {[%clk 0:03:04.5]} 7... Nbd7 {[%clk 0:03:06]} 8. Qf3 {[%clk 0:03:04.9]} 8...
Qc7 {[%clk 0:03:07.2]} 9. O-O-O {[%clk 0:03:05.2]} 9... b5 {[%clk 0:03:08.2]}
10. g4 {[%clk 0:03:04.7]} 10... Bb7 {[%clk 0:03:09]} 11. Bxf6 {[%clk 0:03:03.5]}
11... gxf6 {[%clk 0:03:09.4]} 12. a3 {[%clk 0:03:00.4]} 12... Rc8 {[%clk
0:03:07.4]} 13. Kb1 {[%clk 0:02:53.6]} 13... Nc5 {[%clk 0:03:02.3]} 14. Bg2
{[%clk 0:02:51.8]} 14... Be7 {[%clk 0:02:16.3]} 15. h4 {[%clk 0:02:49.8]} 15...
h5 {[%clk 0:02:10.3]} 16. g5 {[%clk 0:02:49.2]} 16... f5 {[%clk 0:02:09.2]} 17.
Qe2 {[%clk 0:02:46.8]} 17... Nxe4 {[%clk 0:01:57]} 18. Nxe4 {[%clk 0:02:48.7]}
18... Bxe4 {[%clk 0:01:57.3]} 19. Bxe4 {[%clk 0:02:49.3]} 19... fxe4 {[%clk
0:01:59.2]} 20. Qxe4 {[%clk 0:02:50]} 20... d5 {[%clk 0:02:00.5]} 21. Qe3 {[%clk
0:02:43.6]} 21... Qc4 {[%clk 0:01:52.5]} 22. f5 {[%clk 0:02:41.9]} 22... exf5
{[%clk 0:01:11.1]} 23. Rhe1 {[%clk 0:02:36.1]} 23... Rc7 {[%clk 0:01:12.2]} 24.
c3 {[%clk 0:02:33.2]} 24... Kd8 {[%clk 0:00:44.6]} 25. Nxf5 {[%clk 0:02:29.7]}
25... Bc5 {[%clk 0:00:44.4]} 26. Qe5 {[%clk 0:02:28.6]} 26... Rf8 {[%clk
0:00:36.1]} 27. Rxd5+ {[%clk 0:02:29.4]} 27... Kc8 {[%clk 0:00:37.2]} 28. Nd6+
{[%clk 0:02:03.1]} 28... Bxd6 {[%clk 0:00:36.9]} 29. Qxd6 {[%clk 0:02:05]} 29...
Rg8 {[%clk 0:00:33.8]} 30. Qxa6+ {[%clk 0:02:04.7]} 30... Kb8 {[%clk 0:00:33.2]}
31. Rxb5+ {[%clk 0:02:05.3]} 31... Rb7 {[%clk 0:00:32.6]} 32. Qxb7# {[%clk
0:02:05.3]} 1-0